[Event "44th Chess Olympiad Open 2022"]
[Site "Chennai"]
[Date "2022.08.01"]
[Round "4.58"]
[White "Araoun, Saadi"]
[Black "Nor, Mohamed Ahmed"]
[Result "1-0"]
[WhiteElo "2049"]
[BlackElo "1907"]
[Annotator "NA RC"]
[PlyCount "109"]
[EventDate "2022.??.??"]
[TimeControl "60"]

1. d4 {[%emt 0:00:03]} d5 {[%emt 0:00:30]} 2. c4 {[%emt 0:00:12]} c6 {[%emt 0:
00:00]} 3. Nc3 {[%emt 0:00:09]} Nf6 {[%emt 0:00:29]} 4. Nf3 {[%emt 0:00:42]} g6
{[%emt 0:02:24]} 5. Bg5 {[%emt 0:01:56]} Bg7 {[%emt 0:00:00]} 6. e3 {[%emt 0:
00:00]} O-O {[%emt 0:00:00]} 7. Be2 {[%emt 0:00:45]} Bg4 {[%emt 0:00:52]} 8.
Bxf6 {[%emt 0:02:40]} Bxf6 {[%emt 0:00:33]} 9. cxd5 {[%emt 0:00:06]} cxd5 {
[%emt 0:00:47]} 10. Qb3 {[%emt 0:00:18]} e6 {[%emt 0:01:44]} 11. Qxb7 {[%emt 0:
00:00]} Nd7 {[%emt 0:00:47]} 12. O-O {[%emt 0:10:17]} Qc8 {[%emt 0:04:21]} 13.
Qxc8 {[%emt 0:03:30]} Rfxc8 {[%emt 0:00:48]} 14. Rfc1 {[%emt 0:02:34]} Nb6 {
[%emt 0:02:35]} 15. Ba6 {[%emt 0:05:00]} Rc7 {[%emt 0:01:30]} 16. Nb5 {[%emt 0:
00:00]} Rxc1+ {[%emt 0:01:02]} 17. Rxc1 {[%emt 0:00:05]} Bxf3 {[%emt 0:00:59]}
18. gxf3 {[%emt 0:00:04]} e5 {[%emt 0:02:47]} 19. dxe5 {[%emt 0:01:47]} Bxe5 {
[%emt 0:00:39]} 20. b3 {[%emt 0:00:06]} Rd8 {[%emt 0:03:08]} 21. f4 {[%emt 0:
00:00]} Bb8 {[%emt 0:01:40]} 22. Nd4 {[%emt 0:00:56]} Kg7 {[%emt 0:03:46]} 23.
Nc6 {[%emt 0:01:14]} Re8 {[%emt 0:01:29]} 24. Nxb8 {[%emt 0:00:09]} Rxb8 {
[%emt 0:00:26]} 25. Rc7 {[%emt 0:00:07]} Ra8 {[%emt 0:03:49]} 26. a4 {[%emt 0:
00:00]} Rd8 {[%emt 0:04:03]} 27. a5 {[%emt 0:01:34]} Nd7 {[%emt 0:00:35]} 28.
Rxa7 {[%emt 0:01:58]} Nc5 {[%emt 0:04:42]} 29. b4 {[%emt 0:00:07]} Nb3 {
[%emt 0:00:39]} 30. Be2 {[%emt 0:01:37]} d4 {[%emt 0:03:07]} 31. exd4 {[%emt 0:
00:00]} Nxd4 {[%emt 0:02:08]} 32. Bc4 {[%emt 0:00:49]} h5 {[%emt 0:02:06]} 33.
Rxf7+ {[%emt 0:00:18]} Kh6 {[%emt 0:00:16]} 34. a6 {[%emt 0:00:33]} h4 {
[%emt 0:00:28]} 35. h3 {[%emt 0:00:23]} Rc8 {[%emt 0:02:08]} 36. a7 {[%emt 0:
00:00]} Nc6 {[%emt 0:00:38]} 37. Bd5 {[%emt 0:00:22]} Nxa7 {[%emt 0:06:42]} 38.
Rxa7 {[%emt 0:00:15]} Rc1+ {[%emt 0:01:21]} 39. Kg2 {[%emt 0:00:04]} Rd1 {
[%emt 0:00:32]} 40. Bg8 {[%emt 0:00:07]} g5 {[%emt 0:00:40]} 41. fxg5+ {
[%emt 0:30:54]} Kh5 {[%emt 0:31:08]} 42. b5 {[%emt 0:00:56]} Rd2 {[%emt 0:00:
00]} 43. b6 {[%emt 0:00:12]} Rb2 {[%emt 0:00:24]} 44. b7 {[%emt 0:00:12]} Rb5 {
[%emt 0:00:23]} 45. Ra5 {[%emt 0:00:45]} Rxb7 {[%emt 0:00:45]} 46. Bd5 {
[%emt 0:00:21]} Re7 {[%emt 0:02:22]} 47. Bf3+ {[%emt 0:00:19]} Kg6 {[%emt 0:00:
00]} 48. Bd1 {[%emt 0:00:19]} Re1 {[%emt 0:00:49]} 49. Bc2+ {[%emt 0:00:07]}
Kh5 {[%emt 0:00:17]} 50. g6+ {[%emt 0:00:24]} Kh6 {[%emt 0:00:57]} 51. Ra7 {
[%emt 0:00:05]} Re8 {[%emt 0:03:47]} 52. Rh7+ {[%emt 0:02:54]} Kg5 {[%emt 0:00:
00]} 53. g7 {[%emt 0:00:11]} Rg8 {[%emt 0:00:35]} 54. Bb3 {[%emt 0:00:07]} Rf8
{[%emt 0:01:09]} 55. gxf8=Q {[%emt 0:00:18]} 1-0

[Event "44th Chess Olympiad Open 2022"]
[Site "Chennai"]
[Date "2022.08.01"]
[Round "4.58"]
[White "Abdulkadir Mohamed Warsame"]
[Black "Djabri, Massinas"]
[Result "0-1"]
[WhiteElo "1820"]
[BlackElo "2206"]
[Annotator "NA RC"]
[PlyCount "103"]
[EventDate "2022.??.??"]
[TimeControl "60"]

1. c4 {[%emt 0:00:04]} Nf6 {[%emt 0:00:07]} 2. Nc3 {[%emt 0:00:18]} g6 {
[%emt 0:00:33]} 3. d4 {[%emt 0:00:36]} Bg7 {[%emt 0:00:09]} 4. e4 {[%emt 0:00:
00]} O-O {[%emt 0:00:17]} 5. Nf3 {[%emt 0:00:29]} d6 {[%emt 0:00:23]} 6. Be2 {
[%emt 0:00:31]} e5 {[%emt 0:00:09]} 7. dxe5 {[%emt 0:00:32]} dxe5 {[%emt 0:00:
00]} 8. Qxd8 {[%emt 0:00:06]} Rxd8 {[%emt 0:00:11]} 9. Bg5 {[%emt 0:00:32]} Re8
{[%emt 0:01:33]} 10. h3 {[%emt 0:01:35]} h6 {[%emt 0:04:30]} 11. Be3 {[%emt 0:
00:00]} c6 {[%emt 0:01:35]} 12. g4 {[%emt 0:04:11]} Nfd7 {[%emt 0:09:44]} 13.
c5 {[%emt 0:22:49]} Bf8 {[%emt 0:03:24]} 14. Na4 {[%emt 0:03:16]} Na6 {[%emt 0:
00:00]} 15. Bxa6 {[%emt 0:00:43]} bxa6 {[%emt 0:00:05]} 16. Nd2 {[%emt 0:01:44]
} Nf6 {[%emt 0:01:13]} 17. f3 {[%emt 0:04:21]} Be6 {[%emt 0:00:38]} 18. b3 {
[%emt 0:03:09]} Rab8 {[%emt 0:08:33]} 19. Rc1 {[%emt 0:03:23]} Rb4 {[%emt 0:00:
00]} 20. Nb2 {[%emt 0:04:27]} Nd7 {[%emt 0:08:07]} 21. Ke2 {[%emt 0:06:31]}
Reb8 {[%emt 0:15:23]} 22. Rc2 {[%emt 0:12:28]} a5 {[%emt 0:04:18]} 23. Rhc1 {
[%emt 0:00:23]} R4b5 {[%emt 0:06:41]} 24. Na4 {[%emt 0:05:46]} R8b7 {[%emt 0:
00:00]} 25. Nb1 {[%emt 0:07:04]} f5 {[%emt 0:06:52]} 26. Na3 {[%emt 0:01:56]}
Rb4 {[%emt 0:00:35]} 27. Bd2 {[%emt 0:00:27]} fxe4 {[%emt 0:00:02]} 28. Bxb4 {
[%emt 0:02:02]} exf3+ {[%emt 0:01:50]} 29. Kxf3 {[%emt 0:02:17]} Bd5+ {[%emt 0:
00:00]} 30. Kg3 {[%emt 0:05:36]} axb4 {[%emt 0:01:32]} 31. Nc4 {[%emt 0:01:41]}
Rb5 {[%emt 0:01:32]} 32. Ne3 {[%emt 0:00:44]} Be4 {[%emt 0:00:08]} 33. Rf2 {
[%emt 0:00:21]} Be7 {[%emt 0:00:27]} 34. Rc4 {[%emt 0:03:34]} Bd3 {[%emt 0:00:
00]} 35. Rd2 {[%emt 0:00:53]} e4 {[%emt 0:00:16]} 36. Rxe4 {[%emt 0:01:44]}
Bxe4 {[%emt 0:00:14]} 37. Rxd7 {[%emt 0:00:15]} Bxc5 {[%emt 0:00:19]} 38. Nxc5
{[%emt 0:00:52]} Rxc5 {[%emt 0:00:25]} 39. Rxa7 {[%emt 0:00:45]} Rc3 {[%emt 0:
00:00]} 40. Kf2 {[%emt 0:00:51]} Bb1 {[%emt 0:00:18]} 41. h4 {[%emt 0:30:27]}
Rd3 {[%emt 0:32:13]} 42. Ke2 {[%emt 0:00:40]} Rd4 {[%emt 0:00:49]} 43. Ra6 {
[%emt 0:00:24]} h5 {[%emt 0:00:41]} 44. Rxc6 {[%emt 0:00:00]} hxg4 {[%emt 0:00:
00]} 45. Nc2 {[%emt 0:00:00]} Rf4 {[%emt 0:00:00]} 46. Rxg6+ {[%emt 0:00:00]}
Kh7 {[%emt 0:00:00]} 47. Rc6 {[%emt 0:00:00]} Bxa2 {[%emt 0:00:00]} 48. Rb6 {
[%emt 0:02:34]} g3 {[%emt 0:00:00]} 49. Ne3 {[%emt 0:00:29]} Bxb3 {[%emt 0:00:
00]} 50. h5 {[%emt 0:00:12]} Bf7 {[%emt 0:00:00]} 51. Rb5 {[%emt 0:00:36]} b3 {
[%emt 0:00:00]} 52. Kd2 {[%emt 0:00:48]} 0-1

[Event "44th Chess Olympiad Open 2022"]
[Site "Chennai"]
[Date "2022.08.01"]
[Round "4.59"]
[White "Ahmad, Al Khatib"]
[Black "Hinga, Githinji"]
[Result "1-0"]
[WhiteElo "2244"]
[BlackElo "1954"]
[Annotator "NA RC"]
[PlyCount "53"]
[EventDate "2022.??.??"]
[TimeControl "60"]

1. e4 {[%emt 0:00:03]} e5 {[%emt 0:04:41]} 2. Nf3 {[%emt 0:00:08]} d6 {[%emt 0:
00:00]} 3. d4 {[%emt 0:00:10]} Nd7 {[%emt 0:01:20]} 4. Nc3 {[%emt 0:01:12]}
Ngf6 {[%emt 0:00:58]} 5. Bc4 {[%emt 0:00:39]} Be7 {[%emt 0:00:15]} 6. O-O {
[%emt 0:01:02]} O-O {[%emt 0:00:51]} 7. Re1 {[%emt 0:00:56]} c6 {[%emt 0:00:47]
} 8. a4 {[%emt 0:00:08]} Nxe4 {[%emt 0:15:19]} 9. Nxe4 {[%emt 0:29:49]} d5 {
[%emt 0:00:30]} 10. Bb3 {[%emt 0:10:13]} dxe4 {[%emt 0:00:36]} 11. Nxe5 {
[%emt 0:00:15]} Nxe5 {[%emt 0:05:28]} 12. dxe5 {[%emt 0:00:06]} Bf5 {[%emt 0:
00:00]} 13. c3 {[%emt 0:06:57]} Qa5 {[%emt 0:01:33]} 14. e6 {[%emt 0:10:11]} f6
{[%emt 0:08:29]} 15. Qd7 {[%emt 0:03:23]} Qb6 {[%emt 0:06:21]} 16. Bc4 {
[%emt 0:05:25]} Rfe8 {[%emt 0:00:33]} 17. b4 {[%emt 0:04:08]} a5 {[%emt 0:00:
00]} 18. Be3 {[%emt 0:02:38]} Qd8 {[%emt 0:00:30]} 19. Qxb7 {[%emt 0:02:37]}
Qc8 {[%emt 0:00:57]} 20. Qxc8 {[%emt 0:02:07]} Rexc8 {[%emt 0:03:09]} 21. bxa5
{[%emt 0:00:39]} c5 {[%emt 0:02:08]} 22. a6 {[%emt 0:01:50]} Kf8 {[%emt 0:00:
00]} 23. Rab1 {[%emt 0:01:06]} Bg6 {[%emt 0:14:09]} 24. Bd5 {[%emt 0:05:36]}
Ra7 {[%emt 0:01:22]} 25. Bb7 {[%emt 0:00:31]} Rd8 {[%emt 0:01:23]} 26. Red1 {
[%emt 0:01:48]} Rd3 {[%emt 0:00:20]} 27. Bf4 {[%emt 0:02:51]} 1-0

[Event "44th Chess Olympiad Open 2022"]
[Site "Chennai"]
[Date "2022.08.01"]
[Round "4.59"]
[White "Njoroge, Martin"]
[Black "Ibrahim Alwahsh"]
[Result "1-0"]
[WhiteElo "1973"]
[BlackElo "2058"]
[Annotator "NA RC"]
[PlyCount "108"]
[EventDate "2022.??.??"]
[TimeControl "60"]

1. d4 {[%emt 0:01:15]} Nf6 {[%emt 0:00:05]} 2. Bf4 {[%emt 0:04:52]} g6 {
[%emt 0:00:08]} 3. Nc3 {[%emt 0:01:01]} d5 {[%emt 0:00:20]} 4. e3 {[%emt 0:00:
00]} Bg7 {[%emt 0:00:58]} 5. h4 {[%emt 0:00:15]} h6 {[%emt 0:00:40]} 6. Nf3 {
[%emt 0:00:44]} O-O {[%emt 0:00:23]} 7. Ne5 {[%emt 0:01:54]} Nbd7 {[%emt 0:00:
00]} 8. Bd3 {[%emt 0:05:30]} a6 {[%emt 0:03:19]} 9. h5 {[%emt 0:03:53]} g5 {
[%emt 0:07:41]} 10. Bxg5 {[%emt 0:25:40]} Nxe5 {[%emt 0:10:24]} 11. dxe5 {
[%emt 0:01:30]} Ng4 {[%emt 0:00:07]} 12. Bf4 {[%emt 0:01:53]} c6 {[%emt 0:00:
00]} 13. Qf3 {[%emt 0:01:42]} Nxe5 {[%emt 0:00:21]} 14. Qg3 {[%emt 0:00:40]}
Nxd3+ {[%emt 0:00:32]} 15. cxd3 {[%emt 0:00:49]} Kh7 {[%emt 0:02:04]} 16. Bc7 {
[%emt 0:06:17]} Qe8 {[%emt 0:08:35]} 17. d4 {[%emt 0:01:23]} Rg8 {[%emt 0:00:
00]} 18. Qh2 {[%emt 0:04:11]} b5 {[%emt 0:03:05]} 19. f3 {[%emt 0:05:25]} a5 {
[%emt 0:12:12]} 20. g4 {[%emt 0:02:26]} Kh8 {[%emt 0:04:24]} 21. O-O-O {
[%emt 0:09:32]} a4 {[%emt 0:01:53]} 22. Ne2 {[%emt 0:02:30]} b4 {[%emt 0:03:03]
} 23. Be5 {[%emt 0:04:53]} f6 {[%emt 0:05:54]} 24. Nf4 {[%emt 0:04:56]} fxe5 {
[%emt 0:00:18]} 25. Ng6+ {[%emt 0:00:08]} Kh7 {[%emt 0:00:21]} 26. Qc2 {
[%emt 0:00:40]} e4 {[%emt 0:03:10]} 27. fxe4 {[%emt 0:00:18]} b3 {[%emt 0:00:
00]} 28. axb3 {[%emt 0:00:54]} axb3 {[%emt 0:00:03]} 29. Qb1 {[%emt 0:00:12]}
Rf8 {[%emt 0:05:17]} 30. Nxf8+ {[%emt 0:02:06]} Bxf8 {[%emt 0:00:20]} 31. exd5+
{[%emt 0:01:36]} Kh8 {[%emt 0:00:09]} 32. Qe4 {[%emt 0:00:53]} cxd5 {[%emt 0:
00:00]} 33. Qxd5 {[%emt 0:02:47]} Qa4 {[%emt 0:00:57]} 34. Rhf1 {[%emt 0:01:51]
} Qa1+ {[%emt 0:01:06]} 35. Kd2 {[%emt 0:00:06]} Qxb2+ {[%emt 0:00:07]} 36. Ke1
{[%emt 0:00:24]} Qc3+ {[%emt 0:04:51]} 37. Kf2 {[%emt 0:01:21]} Ra2+ {[%emt 0:
00:00]} 38. Kg3 {[%emt 0:00:50]} Qc7+ {[%emt 0:00:30]} 39. Qe5+ {[%emt 0:01:36]
} Qxe5+ {[%emt 0:00:15]} 40. dxe5 {[%emt 0:00:07]} Kg7 {[%emt 0:00:24]} 41. Rd8
{[%emt 0:30:53]} Ba6 {[%emt 0:30:54]} 42. Rfxf8 {[%emt 0:00:00]} Bc4 {[%emt 0:
00:00]} 43. Rf2 {[%emt 0:00:00]} Ra5 {[%emt 0:00:00]} 44. Rc8 {[%emt 0:00:00]}
Bg8 {[%emt 0:00:00]} 45. Kf4 {[%emt 0:00:00]} Rb5 {[%emt 0:00:00]} 46. Rb2 {
[%emt 0:00:00]} Rb4+ {[%emt 0:00:00]} 47. Kf3 {[%emt 0:00:00]} Be6 {[%emt 0:00:
00]} 48. Rc7 {[%emt 0:00:00]} Bxg4+ {[%emt 0:00:00]} 49. Kg3 {[%emt 0:00:00]}
Bxh5 {[%emt 0:02:17]} 50. Rxe7+ {[%emt 0:00:00]} Kg6 {[%emt 0:00:04]} 51. Rf2 {
[%emt 0:00:00]} Kg5 {[%emt 0:02:04]} 52. Rf4 {[%emt 0:03:47]} Rb6 {[%emt 0:00:
00]} 53. Rg7+ {[%emt 0:00:23]} Bg6 {[%emt 0:00:07]} 54. e4 {[%emt 0:01:15]} b2
{[%emt 0:01:38]} 1-0

[Event "44th Chess Olympiad Open 2022"]
[Site "Chennai"]
[Date "2022.08.01"]
[Round "4.59"]
[White "Namale, Ben Nguku"]
[Black "Mansour, Sameer"]
[Result "1-0"]
[WhiteElo "1962"]
[BlackElo "2275"]
[Annotator "NA RC"]
[PlyCount "107"]
[EventDate "2022.??.??"]
[TimeControl "60"]

1. d4 {[%emt 0:00:06]} Nf6 {[%emt 0:02:11]} 2. Bf4 {[%emt 0:00:43]} g6 {
[%emt 0:00:13]} 3. Nc3 {[%emt 0:00:53]} Bg7 {[%emt 0:00:09]} 4. e4 {[%emt 0:00:
00]} d5 {[%emt 0:02:49]} 5. e5 {[%emt 0:03:01]} Ne4 {[%emt 0:00:03]} 6. Nxe4 {
[%emt 0:04:05]} dxe4 {[%emt 0:00:03]} 7. Qd2 {[%emt 0:01:13]} c5 {[%emt 0:00:
00]} 8. Bb5+ {[%emt 0:06:13]} Bd7 {[%emt 0:10:24]} 9. Bxd7+ {[%emt 0:07:57]}
Qxd7 {[%emt 0:03:27]} 10. O-O-O {[%emt 0:02:37]} Nc6 {[%emt 0:01:09]} 11. dxc5
{[%emt 0:01:50]} Qxd2+ {[%emt 0:01:40]} 12. Rxd2 {[%emt 0:06:56]} Nxe5 {
[%emt 0:00:04]} 13. Re2 {[%emt 0:16:28]} f5 {[%emt 0:00:13]} 14. f3 {[%emt 0:
00:00]} exf3 {[%emt 0:08:18]} 15. Nxf3 {[%emt 0:00:39]} Nxf3 {[%emt 0:00:08]}
16. gxf3 {[%emt 0:00:02]} Kf7 {[%emt 0:03:40]} 17. Be5 {[%emt 0:11:19]} Bh6+ {
[%emt 0:00:55]} 18. Kb1 {[%emt 0:00:42]} Rhd8 {[%emt 0:00:28]} 19. h4 {[%emt 0:
00:00]} Rd5 {[%emt 0:04:14]} 20. h5 {[%emt 0:06:59]} g5 {[%emt 0:05:04]} 21. b4
{[%emt 0:02:05]} a5 {[%emt 0:00:38]} 22. c4 {[%emt 0:03:19]} Rd7 {[%emt 0:00:
00]} 23. a3 {[%emt 0:03:58]} axb4 {[%emt 0:00:07]} 24. axb4 {[%emt 0:00:03]}
Ra4 {[%emt 0:04:25]} 25. Bc3 {[%emt 0:03:08]} Bg7 {[%emt 0:00:17]} 26. Bxg7 {
[%emt 0:01:47]} Kxg7 {[%emt 0:00:01]} 27. Rb2 {[%emt 0:00:29]} e5 {[%emt 0:00:
00]} 28. Kc2 {[%emt 0:01:17]} Kf6 {[%emt 0:02:03]} 29. Kb3 {[%emt 0:01:21]} Ra8
{[%emt 0:00:02]} 30. b5 {[%emt 0:00:39]} e4 {[%emt 0:00:10]} 31. fxe4 {[%emt 0:
00:00]} f4 {[%emt 0:00:03]} 32. h6 {[%emt 0:01:04]} Rg8 {[%emt 0:01:29]} 33.
Rh5 {[%emt 0:00:49]} Kg6 {[%emt 0:03:06]} 34. Rxg5+ {[%emt 0:00:02]} Kxg5 {
[%emt 0:00:15]} 35. Rg2+ {[%emt 0:00:01]} Kf6 {[%emt 0:06:22]} 36. Rxg8 {
[%emt 0:00:13]} Rf7 {[%emt 0:00:01]} 37. Kc3 {[%emt 0:01:31]} f3 {[%emt 0:00:
00]} 38. Rg1 {[%emt 0:00:06]} Ke5 {[%emt 0:00:05]} 39. Kd3 {[%emt 0:00:31]} Kf4
{[%emt 0:00:04]} 40. c6 {[%emt 0:00:20]} bxc6 {[%emt 0:00:10]} 41. bxc6 {
[%emt 0:30:09]} Rf8 {[%emt 0:40:28]} 42. Kd4 {[%emt 0:02:21]} Re8 {[%emt 0:00:
00]} 43. Kd5 {[%emt 0:00:43]} Re5+ {[%emt 0:01:35]} 44. Kd6 {[%emt 0:00:00]}
Rxe4 {[%emt 0:00:00]} 45. c5 {[%emt 0:00:00]} Rd4+ {[%emt 0:00:00]} 46. Ke6 {
[%emt 0:00:00]} Re4+ {[%emt 0:00:00]} 47. Kd5 {[%emt 0:00:00]} Re5+ {[%emt 0:
00:00]} 48. Kc4 {[%emt 0:00:00]} Rg5 {[%emt 0:00:00]} 49. Rf1 {[%emt 0:00:00]}
Rg8 {[%emt 0:00:56]} 50. Kb5 {[%emt 0:00:00]} Ke3 {[%emt 0:00:05]} 51. c7 {
[%emt 0:00:00]} Ke2 {[%emt 0:00:06]} 52. Ra1 {[%emt 0:00:00]} f2 {[%emt 0:00:
00]} 53. Kb6 {[%emt 0:00:00]} Ke3 {[%emt 0:03:00]} 54. Rf1 {[%emt 0:00:00]} 1-0

[Event "44th Chess Olympiad Open 2022"]
[Site "Chennai"]
[Date "2022.08.01"]
[Round "4.59"]
[White "Boshra, Alshaeby"]
[Black "Oluka Robert Mcligeyo"]
[Result "1/2-1/2"]
[WhiteElo "1854"]
[BlackElo "1823"]
[Annotator "NA RC"]
[PlyCount "60"]
[EventDate "2022.??.??"]
[TimeControl "60"]

1. Nf3 {[%emt 0:00:16]} d5 {[%emt 0:00:11]} 2. g3 {[%emt 0:00:04]} e6 {[%emt 0:
00:00]} 3. Bg2 {[%emt 0:00:05]} Nf6 {[%emt 0:00:07]} 4. O-O {[%emt 0:00:05]}
Be7 {[%emt 0:00:04]} 5. d3 {[%emt 0:00:17]} b6 {[%emt 0:02:54]} 6. Nbd2 {
[%emt 0:00:42]} Bb7 {[%emt 0:00:06]} 7. e4 {[%emt 0:01:16]} dxe4 {[%emt 0:00:
00]} 8. Ng5 {[%emt 0:00:06]} Nbd7 {[%emt 0:05:33]} 9. Re1 {[%emt 0:03:03]} O-O
{[%emt 0:01:42]} 10. dxe4 {[%emt 0:04:38]} Ne5 {[%emt 0:08:01]} 11. Qe2 {
[%emt 0:05:53]} a5 {[%emt 0:05:30]} 12. Nh3 {[%emt 0:07:01]} Ba6 {[%emt 0:00:
00]} 13. Qd1 {[%emt 0:02:48]} Bb4 {[%emt 0:06:22]} 14. a3 {[%emt 0:04:01]} Be7
{[%emt 0:06:30]} 15. f4 {[%emt 0:14:49]} Nc4 {[%emt 0:17:14]} 16. Nxc4 {
[%emt 0:21:28]} Qxd1 {[%emt 0:00:27]} 17. Rxd1 {[%emt 0:00:04]} Bxc4 {[%emt 0:
00:00]} 18. Bf3 {[%emt 0:01:15]} Bc5+ {[%emt 0:00:16]} 19. Kg2 {[%emt 0:00:03]}
Rad8 {[%emt 0:00:15]} 20. Bd2 {[%emt 0:03:25]} a4 {[%emt 0:01:41]} 21. Bb4 {
[%emt 0:03:11]} Bxb4 {[%emt 0:03:37]} 22. axb4 {[%emt 0:00:04]} b5 {[%emt 0:00:
00]} 23. Nf2 {[%emt 0:00:12]} e5 {[%emt 0:05:37]} 24. f5 {[%emt 0:11:44]} Nd7 {
[%emt 0:05:50]} 25. Ra3 {[%emt 0:00:06]} c5 {[%emt 0:01:59]} 26. bxc5 {[%emt 0:
00:00]} Nxc5 {[%emt 0:00:11]} 27. Rc3 {[%emt 0:05:48]} Rfe8 {[%emt 0:00:44]}
28. Re3 {[%emt 0:00:30]} Rf8 {[%emt 0:00:13]} 29. Rc3 {[%emt 0:00:06]} Rfe8 {
[%emt 0:00:11]} 30. Re3 {[%emt 0:00:03]} Rf8 {[%emt 0:00:34]} 1/2-1/2

[Event "44th Chess Olympiad Open 2022"]
[Site "Chennai"]
[Date "2022.08.01"]
[Round "4.60"]
[White "Laohawirapap, Prin"]
[Black "Bobby Ballah"]
[Result "1-0"]
[WhiteElo "2230"]
[BlackElo "1916"]
[Annotator "NA RC"]
[PlyCount "51"]
[EventDate "2022.??.??"]
[TimeControl "60"]

1. e4 {[%emt 0:00:03]} e5 {[%emt 0:00:20]} 2. Nf3 {[%emt 0:00:04]} Nc6 {
[%emt 0:00:07]} 3. d4 {[%emt 0:00:07]} exd4 {[%emt 0:00:17]} 4. Nxd4 {[%emt 0:
00:00]} Qf6 {[%emt 0:03:43]} 5. Nf3 {[%emt 0:00:05]} d6 {[%emt 0:01:58]} 6. Nc3
{[%emt 0:00:07]} Bg4 {[%emt 0:05:04]} 7. Be2 {[%emt 0:02:40]} Bxf3 {[%emt 0:00:
00]} 8. Bxf3 {[%emt 0:00:35]} O-O-O {[%emt 0:02:37]} 9. Be3 {[%emt 0:16:21]}
Nge7 {[%emt 0:03:01]} 10. O-O {[%emt 0:09:50]} Kb8 {[%emt 0:03:54]} 11. Qd2 {
[%emt 0:16:22]} h6 {[%emt 0:00:36]} 12. b4 {[%emt 0:04:19]} g5 {[%emt 0:01:55]}
13. b5 {[%emt 0:03:58]} Ne5 {[%emt 0:03:29]} 14. Be2 {[%emt 0:04:41]} g4 {
[%emt 0:01:08]} 15. a4 {[%emt 0:07:11]} Rg8 {[%emt 0:06:40]} 16. Kh1 {[%emt 0:
00:00]} Qh4 {[%emt 0:11:28]} 17. a5 {[%emt 0:10:00]} Nf3 {[%emt 0:00:37]} 18.
gxf3 {[%emt 0:04:30]} gxf3 {[%emt 0:00:17]} 19. Bxf3 {[%emt 0:00:04]} Qh3 {
[%emt 0:00:08]} 20. Qe2 {[%emt 0:00:04]} Bg7 {[%emt 0:00:10]} 21. Bg2 {[%emt 0:
00:00]} Qh4 {[%emt 0:00:27]} 22. Ra3 {[%emt 0:00:46]} f5 {[%emt 0:29:00]} 23.
exf5 {[%emt 0:01:32]} Be5 {[%emt 0:01:23]} 24. f4 {[%emt 0:01:10]} Nxf5 {
[%emt 0:02:23]} 25. Bf2 {[%emt 0:01:19]} Qe7 {[%emt 0:16:54]} 26. fxe5 {
[%emt 0:00:40]} 1-0

[Event "44th Chess Olympiad Open 2022"]
[Site "Chennai"]
[Date "2022.08.01"]
[Round "4.60"]
[White "Jingjang, Shin"]
[Black "Joel O. Ebiekuta"]
[Result "1-0"]
[WhiteElo "1956"]
[BlackElo "1848"]
[Annotator "NA RC"]
[PlyCount "103"]
[EventDate "2022.??.??"]
[TimeControl "60"]

1. d4 {[%emt 0:00:02]} e6 {[%emt 0:05:00]} 2. Nf3 {[%emt 0:00:04]} d5 {[%emt 0:
00:00]} 3. Bf4 {[%emt 0:00:06]} c5 {[%emt 0:00:21]} 4. c3 {[%emt 0:00:01]} Nf6
{[%emt 0:00:14]} 5. e3 {[%emt 0:00:01]} Nc6 {[%emt 0:00:40]} 6. Nbd2 {[%emt 0:
00:00]} Bd6 {[%emt 0:01:09]} 7. Bg3 {[%emt 0:00:07]} a6 {[%emt 0:00:26]} 8. Bd3
{[%emt 0:01:47]} h6 {[%emt 0:00:20]} 9. O-O {[%emt 0:01:39]} O-O {[%emt 0:00:
00]} 10. Ne5 {[%emt 0:00:02]} c4 {[%emt 0:00:50]} 11. Bc2 {[%emt 0:00:31]} Qc7
{[%emt 0:01:41]} 12. f4 {[%emt 0:00:07]} Ne7 {[%emt 0:01:49]} 13. Bf2 {[%emt 0:
00:00]} Ne8 {[%emt 0:04:18]} 14. Qh5 {[%emt 0:04:06]} f5 {[%emt 0:02:01]} 15.
Kh1 {[%emt 0:07:53]} Nf6 {[%emt 0:13:04]} 16. Qh3 {[%emt 0:00:01]} b5 {[%emt 0:
00:00]} 17. Rg1 {[%emt 0:02:36]} h5 {[%emt 0:03:19]} 18. Qf3 {[%emt 0:05:34]}
Bd7 {[%emt 0:00:54]} 19. Bh4 {[%emt 0:00:45]} Be8 {[%emt 0:06:09]} 20. h3 {
[%emt 0:09:33]} Ng6 {[%emt 0:03:46]} 21. Bxf6 {[%emt 0:12:09]} Rxf6 {[%emt 0:
00:00]} 22. Nf1 {[%emt 0:08:42]} Nf8 {[%emt 0:01:57]} 23. Ng3 {[%emt 0:00:00]}
Rh6 {[%emt 0:00:13]} 24. Nxf5 {[%emt 0:00:00]} Rf6 {[%emt 0:04:48]} 25. Nxd6 {
[%emt 0:01:57]} Qxd6 {[%emt 0:00:17]} 26. Raf1 {[%emt 0:00:58]} Ra7 {[%emt 0:
00:00]} 27. Qg3 {[%emt 0:05:56]} a5 {[%emt 0:01:17]} 28. f5 {[%emt 0:02:35]}
exf5 {[%emt 0:01:46]} 29. Rxf5 {[%emt 0:08:04]} Rxf5 {[%emt 0:06:59]} 30. Bxf5
{[%emt 0:00:00]} Rf7 {[%emt 0:00:21]} 31. Qg5 {[%emt 0:00:00]} Rf6 {[%emt 0:00:
00]} 32. Rf1 {[%emt 0:01:23]} g6 {[%emt 0:05:55]} 33. Rf3 {[%emt 0:02:57]} Kg7
{[%emt 0:02:07]} 34. Bc2 {[%emt 0:00:41]} Rxf3 {[%emt 0:01:06]} 35. Nxf3 {
[%emt 0:00:02]} Nd7 {[%emt 0:01:22]} 36. Nh4 {[%emt 0:00:34]} Qe6 {[%emt 0:00:
00]} 37. Bf5 {[%emt 0:02:59]} Qf6 {[%emt 0:07:09]} 38. Qxf6+ {[%emt 0:00:07]}
Nxf6 {[%emt 0:00:28]} 39. Bc2 {[%emt 0:02:21]} b4 {[%emt 0:00:42]} 40. Nf3 {
[%emt 0:00:39]} bxc3 {[%emt 0:02:53]} 41. bxc3 {[%emt 0:30:13]} Kf8 {[%emt 0:
00:00]} 42. Ne5 {[%emt 0:00:43]} g5 {[%emt 0:00:39]} 43. Kg1 {[%emt 0:00:59]}
Kg7 {[%emt 0:01:09]} 44. Kf2 {[%emt 0:00:27]} Bd7 {[%emt 0:00:31]} 45. e4 {
[%emt 0:05:11]} Be6 {[%emt 0:00:45]} 46. Ke3 {[%emt 0:01:50]} Bc8 {[%emt 0:00:
00]} 47. Nc6 {[%emt 0:00:33]} dxe4 {[%emt 0:01:51]} 48. Bxe4 {[%emt 0:01:13]}
a4 {[%emt 0:01:36]} 49. d5 {[%emt 0:00:24]} Nxe4 {[%emt 0:00:41]} 50. Kxe4 {
[%emt 0:00:02]} Kf6 {[%emt 0:00:37]} 51. Kd4 {[%emt 0:00:19]} Bf5 {[%emt 0:00:
00]} 52. Ne5 {[%emt 0:00:48]} 1-0